bitfinex/quotes_BTCUSD_20250730
["timestamp","ask_amount","ask_price","bid_price","bid_amount"]
[1753835126481,0.51982069,117960.0,117950.0,0.13935078]
[1753835127197,0.49496069,117960.0,117950.0,0.13935078]
[1753835127400,0.49508069,117960.0,117950.0,0.13935078]
[1753835127628,0.15508069,117960.0,117950.0,0.16879783]
[1753835130238,0.15504069,117960.0,117950.0,0.16879783]
[1753835130627,0.65504069,117960.0,117950.0,0.16879783]
[1753835131702,0.65504069,117960.0,117950.0,0.15465078]
[1753835134613,0.15504069,117960.0,117950.0,0.15465078]
[1753835134786,0.65504069,117960.0,117950.0,0.15465078]
[1753835137201,0.15504069,117960.0,117950.0,0.15465078]
[1753835138907,0.15508069,117960.0,117950.0,0.15465078]
[1753835139128,0.3704,117970.0,117960.0,0.04173078]
[1753835139346,0.50215,117970.0,117960.0,0.04173078]
[1753835139576,0.50522,117970.0,117960.0,0.04173078]
[1753835140447,0.50522,117970.0,117950.0,0.13647783]
[1753835140655,0.50522,117970.0,117960.0,0.04173078]
[1753835141086,0.53008,117970.0,117960.0,0.04173078]
[1753835146700,0.53008,117970.0,117950.0,0.11880078]
[1753835146934,0.53008,117970.0,117960.0,0.04173078]
[1753835147147,0.53008,117970.0,117960.0,0.06467078]
[1753835147780,0.50522,117970.0,117960.0,0.06467078]
[1753835148002,0.50215,117970.0,117960.0,0.06467078]
[1753835148255,0.50215,117970.0,117960.0,0.06666078]
[1753835148481,0.34,117970.0,117960.0,0.13030425]
[1753835148710,0.38119086,117980.0,117970.0,0.04173078]
[1753835148946,4.79207586,117980.0,117970.0,0.04372078]
[1753835149165,4.79207586,117980.0,117970.0,0.02493]
[1753835149383,4.77677586,117980.0,117970.0,0.06991078]
[1753835149867,4.77677586,117980.0,117970.0,0.04340205]
[1753835150114,4.77677586,117980.0,117970.0,0.02818]
[1753835150809,4.77677586,117980.0,117970.0,0.02493]
[1753835151273,4.79197586,117980.0,117970.0,0.02493]
[1753835152680,4.80817586,117980.0,117970.0,0.06666078]
[1753835155169,4.87429635,117980.0,117970.0,0.04173078]
[1753835155395,4.9878297,117980.0,117970.0,0.04173078]
[1753835155614,5.00478093,117980.0,117970.0,0.04173078]
[1753835155839,4.92030363,117980.0,117970.0,0.04173078]
[1753835156488,4.651505,117970.0,117960.0,0.09173078]
[1753835156722,0.53126,117970.0,117960.0,0.11467078]
[1753835156940,0.50728,117970.0,117960.0,0.11467078]
[1753835157367,0.50406,117970.0,117960.0,0.11467078]
[1753835158026,0.5041,117970.0,117960.0,0.11667078]
[1753835158490,0.5041,117970.0,117960.0,0.11866078]
[1753835158895,0.5041,117970.0,117960.0,0.11966078]
[1753835160004,0.5041,117970.0,117960.0,0.12291078]
[1753835160231,0.4696,117970.0,117960.0,0.12291078]
[1753835162905,0.34,117970.0,117960.0,0.13811078]
[1753835163135,0.15545086,117980.0,117970.0,0.05]
[1753835163345,0.49545086,117980.0,117970.0,0.09372078]
[1753835163551,0.49545086,117980.0,117970.0,0.11991078]
[1753835163753,0.51055086,117980.0,117970.0,0.11991078]
[1753835163993,0.51265086,117980.0,117970.0,0.11991078]
[1753835164228,0.52915086,117980.0,117970.0,0.13150327]
[1753835165787,0.52915086,117980.0,117970.0,0.12825327]
[1753835166953,0.52915086,117980.0,117970.0,0.13150327]
[1753835167153,0.36589086,117980.0,117970.0,0.13150327]
[1753835167404,0.02589086,117980.0,117970.0,0.13150327]
[1753835167848,0.84405202,117990.0,117980.0,0.04173078]
[1753835168037,0.84615202,117990.0,117980.0,0.05488111]
[1753835168288,0.68093914,117990.0,117980.0,0.07782111]
[1753835170246,0.70670389,117990.0,117980.0,0.07782111]
[1753835172269,0.67950389,117990.0,117980.0,0.07981111]
[1753835172957,0.67950389,117990.0,117980.0,0.05687111]
[1753835173172,0.67950389,117990.0,117980.0,0.07981111]
[1753835173407,0.67950389,117990.0,117980.0,0.08081111]
[1753835174960,0.67950389,117990.0,117980.0,0.08281111]
[1753835175726,0.67950389,117990.0,117980.0,0.08082111]
[1753835175964,0.70690389,117990.0,117980.0,0.08082111]
[1753835176209,0.70674389,117990.0,117980.0,0.08082111]
[1753835176659,0.70674389,117990.0,117980.0,0.05788111]
[1753835178429,0.70674389,117990.0,117980.0,0.01615033]
[1753835178646,0.70674389,117990.0,117980.0,0.05788111]
[1753835180345,0.70674389,117990.0,117980.0,0.01615033]
[1753835180547,0.70674389,117990.0,117980.0,0.05788111]
[1753835181097,0.70674389,117990.0,117980.0,0.01615033]
[1753835181310,0.70674389,117990.0,117980.0,0.05788111]
[1753835181937,0.70674389,117990.0,117980.0,0.04473078]
[1753835185533,0.70167389,117990.0,117980.0,0.04473078]
[1753835185751,0.70668389,117990.0,117980.0,0.04473078]
[1753835187321,0.7321086,117990.0,117980.0,0.003]
[1753835187539,0.76116465,117990.0,117980.0,0.003]
[1753835187675,0.85411717,117990.0,117980.0,0.003]
[1753835188109,0.85411717,117990.0,117980.0,0.002]
[1753835188313,1.02362306,117990.0,117980.0,0.002]
[1753835188518,0.0318,117960.0,117950.0,0.20431]
[1753835188715,0.03384,117960.0,117950.0,0.2409373]
[1753835188964,0.03384,117960.0,117950.0,0.1612973]
[1753835189890,0.03384,117960.0,117950.0,0.1675373]
[1753835190945,0.03384,117960.0,117950.0,0.1705373]
[1753835191166,0.03384,117960.0,117950.0,0.1675373]
[1753835191405,0.03384,117960.0,117950.0,0.1695373]
[1753835191607,0.0318,117960.0,117950.0,0.1641473]
[1753835195450,0.0318,117960.0,117950.0,0.20587808]
[1753835197735,0.0318,117960.0,117950.0,0.21126808]
[1753835200865,0.0318,117960.0,117950.0,0.1695373]
[1753835202886,0.03384,117960.0,117950.0,0.1695373]
[1753835203327,0.03384,117960.0,117950.0,0.03182]
[1753835203554,0.06124,117960.0,117950.0,0.055]
[1753835204223,0.06124,117960.0,117950.0,0.09673078]
[1753835204420,0.03681,117960.0,117950.0,0.07836]
[1753835204681,0.03384,117960.0,117950.0,0.07836]
[1753835204894,0.03384,117960.0,117950.0,0.12009078]
[1753835205084,0.03384,117960.0,117950.0,0.07836]
[1753835205715,0.03384,117960.0,117950.0,0.08036]
[1753835206162,0.06428483,117960.0,117950.0,0.08036]
[1753835206386,0.06428483,117960.0,117950.0,0.07836]
[1753835206607,0.09065483,117960.0,117950.0,0.07836]
[1753835207257,0.09065483,117960.0,117950.0,0.055]
[1753835208599,0.09065483,117960.0,117950.0,0.09673078]
[1753835209085,0.06021,117960.0,117950.0,0.07836]
[1753835209300,0.03384,117960.0,117950.0,0.12009078]
[1753835209481,0.03384,117960.0,117950.0,0.09069308]
[1753835209637,0.03384,117960.0,117950.0,0.13242386]
[1753835209832,0.03384,117960.0,117950.0,0.09069308]
[1753835210467,0.03384,117960.0,117950.0,0.09269308]
[1753835210675,0.03384,117960.0,117950.0,0.13739386]
[1753835210885,0.03384,117960.0,117950.0,0.09566308]
[1753835211080,0.16132,117960.0,117950.0,0.13739386]
[1753835215128,0.34,117970.0,117950.0,0.13739386]
[1753835215363,0.0318,117970.0,117960.0,0.11806078]
[1753835215623,0.3718,117980.0,117970.0,0.09173078]
[1753835215824,0.3718,117980.0,117970.0,0.09373078]
[1753835216038,0.3718,117980.0,117970.0,0.12006078]
[1753835218708,0.34,117980.0,117970.0,0.12006078]
[1753835218933,4.279105,117980.0,117970.0,0.12006078]
[1753835219149,4.279105,117980.0,117970.0,0.13239386]
[1753835219602,4.27815718,117980.0,117970.0,0.13439386]
[1753835220451,4.27815718,117980.0,117970.0,0.13539386]
[1753835220897,4.27815718,117980.0,117970.0,0.13439386]
[1753835221666,0.67726389,117990.0,117980.0,0.04173078]
[1753835221886,0.67937389,117990.0,117980.0,0.07837322]
[1753835222766,0.67937389,117990.0,117980.0,0.08037322]
[1753835223427,0.67937389,117990.0,117980.0,0.13334322]
[1753835223664,0.51568389,117990.0,117980.0,0.13334322]
[1753835223888,0.51568389,117990.0,117980.0,0.13534322]
[1753835224099,0.51568389,117990.0,117980.0,0.13634322]
[1753835224561,0.53118389,117990.0,117980.0,0.13634322]
[1753835224786,0.54628389,117990.0,117980.0,0.13634322]
[1753835226603,0.54839389,117990.0,117980.0,0.13634322]
[1753835228542,0.54839389,117990.0,117980.0,0.12009078]
[1753835231000,0.54839389,117990.0,117980.0,0.12306078]
[1753835244531,0.54628389,117990.0,117980.0,0.12306078]
[1753835244756,8.202e-05,117990.0,117980.0,0.20753808]
[1753835246114,0.01508202,117990.0,117980.0,0.20753808]
[1753835248756,0.55940202,117990.0,117980.0,0.17920808]
[1753835248975,0.08982562,117990.0,117980.0,0.04473078]
[1753835249201,0.11701885,117990.0,117980.0,0.09473078]
[1753835249658,0.59065885,117990.0,117980.0,0.09473078]
[1753835249855,0.53304202,117990.0,117980.0,0.11953078]
[1753835250175,0.53304202,117990.0,117980.0,0.12272078]
[1753835255862,0.58982562,117990.0,117980.0,0.053]
[1753835256091,0.08982562,117990.0,117980.0,0.09473078]
[1753835256534,0.08982562,117990.0,117980.0,0.053]
[1753835258648,0.08982562,117990.0,117980.0,0.09473078]
[1753835260327,0.58982562,117990.0,117980.0,0.09473078]
[1753835260524,0.08982562,117990.0,117980.0,0.11753078]
[1753835261290,0.08982562,117990.0,117980.0,0.0758]
[1753835261728,0.08982562,117990.0,117980.0,0.053]
[1753835262531,0.08982562,117990.0,117980.0,0.09473078]
[1753835262744,0.08982562,117990.0,117980.0,0.053]
[1753835262954,0.08982562,117990.0,117980.0,0.09473078]
[1753835263810,0.08982562,117990.0,117980.0,0.053]
[1753835264267,0.08982562,117990.0,117980.0,0.003]
[1753835264449,0.08982562,117990.0,117980.0,0.04473078]
[1753835265064,0.08982562,117990.0,117980.0,0.003]
[1753835265267,0.08982562,117990.0,117980.0,0.04473078]
[1753835265711,0.08982562,117990.0,117980.0,0.003]
[1753835266669,0.08982562,117990.0,117980.0,0.04473078]
[1753835267103,0.06660562,117990.0,117980.0,0.06931078]
[1753835267319,0.06346562,117990.0,117980.0,0.06931078]
[1753835267519,0.03304202,117990.0,117980.0,0.06931078]
[1753835267753,0.53304202,117990.0,117980.0,0.06931078]
[1753835267967,0.53304202,117990.0,117980.0,0.07142078]
[1753835273085,0.53304202,117990.0,117980.0,0.07451078]
[1753835273309,0.53098202,117990.0,117980.0,0.07451078]
[1753835274080,0.53098202,117990.0,117980.0,0.08696186]
[1753835274283,0.53098202,117990.0,117980.0,0.07451078]
[1753835274467,0.53098202,117990.0,117980.0,0.03278]
[1753835274672,0.53098202,117990.0,117980.0,0.07451078]
[1753835275584,8.202e-05,117990.0,117980.0,0.20898808]
[1753835275801,8.202e-05,117990.0,117980.0,0.37060808]
[1753835276247,8.202e-05,117990.0,117980.0,0.55708006]
[1753835276478,8.202e-05,117990.0,117980.0,0.55708013]
[1753835276913,8.202e-05,117990.0,117980.0,0.54860427]
[1753835277121,8.202e-05,117990.0,117980.0,0.54760427]
[1753835277331,8.202e-05,117990.0,117980.0,0.56008013]
[1753835277538,8.202e-05,117990.0,117980.0,0.55160427]
[1753835277743,8.202e-05,117990.0,117980.0,0.55808013]
[1753835277962,8.202e-05,117990.0,117980.0,0.54960427]
[1753835278172,8.202e-05,117990.0,117980.0,0.55260427]
[1753835278379,8.202e-05,117990.0,117980.0,0.55260434]
[1753835278590,8.202e-05,117990.0,117980.0,0.37460808]
[1753835282928,8.202e-05,117990.0,117980.0,0.38308409]
[1753835283278,8.202e-05,117990.0,117980.0,0.37460808]
[1753835283731,8.202e-05,117990.0,117980.0,0.24428808]
[1753835284118,0.09003885,117990.0,117980.0,0.1712573]
[1753835284339,0.11772885,117990.0,117980.0,0.18716]
[1753835284564,0.11772885,117990.0,117980.0,0.22889078]
[1753835284787,0.11772885,117990.0,117980.0,0.04873078]
[1753835285001,0.12620349,117990.0,117980.0,0.04873078]
[1753835285213,0.11772885,117990.0,117980.0,0.17489078]
[1753835285437,0.11772885,117990.0,117980.0,0.18016]
[1753835285679,0.09053562,117990.0,117980.0,0.22189078]
[1753835285897,0.09053562,117990.0,117980.0,0.17289078]
[1753835286077,0.09053562,117990.0,117980.0,0.22289078]
[1753835286523,0.09053562,117990.0,117980.0,0.22589078]
[1753835287191,0.09053562,117990.0,117980.0,0.22289078]
[1753835287405,0.09053562,117990.0,117980.0,0.22489078]
[1753835292168,0.09053562,117990.0,117980.0,0.24947078]
[1753835293643,0.06011202,117990.0,117980.0,0.24947078]
[1753835293854,0.03566202,117990.0,117980.0,0.24947078]
[1753835294072,0.03242202,117990.0,117980.0,0.24947078]
[1753835295127,0.03234,117990.0,117980.0,0.24947078]
[1753835298102,0.03234,117990.0,117980.0,0.25155078]
[1753835303242,0.03234,117990.0,117980.0,0.25448078]
[1753835304337,0.02725,118000.0,117980.0,0.25448078]
[1753835304550,0.02729847,118000.0,117980.0,0.25448078]
[1753835305117,0.02729847,118000.0,117980.0,0.25248078]
[1753835305318,0.02417847,118000.0,117980.0,0.25248078]
[1753835305525,0.02417847,118000.0,117990.0,0.04173078]
[1753835305777,0.02715847,118000.0,117990.0,0.04173078]
[1753835306227,0.02715847,118000.0,117980.0,0.25040078]
[1753835306460,0.02715847,118000.0,117990.0,0.04173078]
[1753835307521,0.39825847,118000.0,117990.0,0.04273078]
[1753835307699,0.39925847,118000.0,117990.0,0.04273078]
[1753835307930,0.39925847,118000.0,117990.0,0.001]
[1753835308110,0.39925847,118000.0,117990.0,0.04273078]
[1753835311317,0.39925847,118000.0,117990.0,0.03521078]
[1753835312333,0.39925847,118000.0,117980.0,0.24288078]
[1753835312544,0.001,118000.0,117990.0,0.03521078]
[1753835312748,0.001,118000.0,117990.0,0.05940078]
[1753835315286,0.001,118000.0,117990.0,0.06233078]
[1753835315497,0.03448,118000.0,117990.0,0.06233078]
[1753835316549,0.03448,118000.0,117990.0,0.05940078]
[1753835316775,0.03448,118000.0,117990.0,0.02419]
[1753835316991,0.03448,118000.0,117990.0,0.05940078]
[1753835317177,0.0632778,118000.0,117990.0,0.05940078]
[1753835318273,0.0632778,118000.0,117990.0,0.02419]
[1753835318500,0.0632778,118000.0,117990.0,0.05940078]
[1753835319174,0.0632778,118000.0,117990.0,0.06233078]
[1753835320480,0.0632778,118000.0,117990.0,0.06441078]
[1753835321340,0.4032778,118000.0,117990.0,0.06441078]
[1753835323735,0.41175187,118000.0,117990.0,0.06441078]
[1753835323944,0.39762659,117980.0,117950.0,0.0311]
[1753835324161,0.53558224,117980.0,117960.0,0.05]
[1753835324365,0.0287978,117970.0,117960.0,0.07766]
[1753835324571,0.0444978,117970.0,117960.0,0.07966]
[1753835324991,0.07835046,117970.0,117960.0,0.07966]
[1753835325248,0.51802629,117960.0,117950.0,0.06167078]
[1753835325490,0.51802629,117960.0,117950.0,0.002]
[1753835325491,5.02102719,117960.0,117950.0,0.002]
[1753835325703,4.99461932,117960.0,117950.0,0.002]
[1753835325915,4.96582152,117960.0,117950.0,0.002]
[1753835326117,5.05029882,117960.0,117950.0,0.002]
[1753835326597,0.00847752,117950.0,117940.0,0.10967078]
[1753835326812,4.8892272,117960.0,117950.0,0.03521078]
[1753835327011,4.79627253,117960.0,117950.0,0.03521078]
[1753835327252,4.79627224,117960.0,117950.0,0.05967078]
[1753835327655,4.79627181,117960.0,117950.0,0.05967078]
[1753835327899,4.7877948,117960.0,117950.0,0.05967078]
[1753835328436,4.7877948,117960.0,117950.0,0.06687078]
[1753835328642,4.7895748,117960.0,117950.0,0.06487078]
[1753835328844,4.6600148,117960.0,117950.0,0.06487078]
[1753835329051,4.781058,117960.0,117950.0,0.06487078]
[1753835329461,4.78953487,117960.0,117950.0,0.02966]
[1753835329657,4.78953487,117960.0,117950.0,0.06487078]
[1753835330061,4.81553837,117960.0,117950.0,0.06487078]
[1753835330276,4.78953487,117960.0,117950.0,0.06487078]
[1753835330473,4.79801188,117960.0,117950.0,0.06487078]
[1753835331102,4.79801181,117960.0,117950.0,0.06487078]
[1753835331514,4.78953487,117960.0,117950.0,0.06487078]
[1753835331745,4.781058,117960.0,117950.0,0.06487078]
[1753835333650,4.7895348,117960.0,117950.0,0.06487078]
[1753835334694,4.79801167,117960.0,117950.0,0.06487078]
[1753835334897,4.7895348,117960.0,117950.0,0.06487078]
[1753835335534,4.781058,117960.0,117950.0,0.06487078]
[1753835335748,4.7895348,117960.0,117950.0,0.06487078]
[1753835336643,4.781058,117960.0,117950.0,0.06487078]
[1753835340577,4.79063856,117960.0,117950.0,0.05967078]
[1753835341032,4.7991155,117960.0,117950.0,0.03521078]
[1753835341259,4.79063856,117960.0,117950.0,0.05967078]
[1753835341523,4.781058,117960.0,117950.0,0.05967078]
[1753835342193,0.5029,117960.0,117950.0,0.02446]
[1753835342390,4.781058,117960.0,117950.0,0.05967078]
[1753835343379,4.7895348,117960.0,117950.0,0.05967078]
[1753835343604,4.781058,117960.0,117950.0,0.05967078]
[1753835344541,4.781058,117960.0,117950.0,0.06287078]
[1753835351051,4.747678,117960.0,117950.0,0.06587078]
[1753835351703,4.407678,117960.0,117950.0,0.06587078]
[1753835352753,4.747678,117960.0,117950.0,0.06587078]
[1753835356648,0.46952,117960.0,117950.0,0.06587078]
[1753835357315,0.4713,117960.0,117950.0,0.06387078]
[1753835360171,0.4797768,117960.0,117950.0,0.06387078]
[1753835360792,0.4713,117960.0,117950.0,0.06387078]
[1753835362253,0.4797768,117960.0,117950.0,0.06387078]
[1753835362690,0.4713,117960.0,117950.0,0.06387078]
[1753835369251,0.5042,117960.0,117950.0,0.06367078]
[1753835374136,0.4713,117960.0,117950.0,0.06367078]
[1753835374502,0.34178,117960.0,117950.0,0.06367078]
[1753835374708,0.41402691,117960.0,117950.0,0.06367078]
[1753835374903,0.28454691,117960.0,117950.0,0.03983193]
[1753835375117,0.28454691,117960.0,117950.0,0.07504271]
[1753835376360,0.41402691,117960.0,117950.0,0.07504271]
[1753835376577,0.41402691,117960.0,117950.0,0.07711271]
[1753835377256,0.28276691,117960.0,117950.0,0.07711271]
[1753835377507,0.41224691,117960.0,117950.0,0.07711271]
[1753835379649,0.41224691,117960.0,117950.0,0.15861271]
[1753835379878,0.41402691,117960.0,117950.0,0.06574078]
[1753835380094,0.41402691,117960.0,117950.0,0.06067078]
[1753835380095,0.49993258,117960.0,117950.0,0.06067078]
[1753835380308,0.50840945,117960.0,117950.0,0.06067078]
[1753835380506,0.49993258,117960.0,117950.0,0.06067078]
[1753835380672,0.50840945,117960.0,117950.0,0.06067078]
[1753835380937,0.49993258,117960.0,117950.0,0.06067078]
[1753835381356,0.47352471,117960.0,117950.0,0.06067078]
[1753835383274,0.47174471,117960.0,117950.0,0.06067078]
[1753835383516,0.48022151,117960.0,117950.0,0.06067078]
[1753835383918,0.47174471,117960.0,117950.0,0.06067078]
[1753835384483,0.42794691,117960.0,117950.0,0.06067078]
[1753835384703,0.41224691,117960.0,117950.0,0.06067078]
[1753835387604,0.46542101,117960.0,117950.0,0.001]
[1753835387805,4.8400902,117960.0,117950.0,0.001]
[1753835388328,4.8429802,117960.0,117950.0,0.001]
[1753835388707,5.01252919,117960.0,117950.0,0.001]
[1753835388913,5.03893706,117960.0,117950.0,0.001]
[1753835389130,5.02198296,117960.0,117950.0,0.001]
[1753835389594,4.310258,117950.0,117940.0,0.02442847]
[1753835389795,4.310258,117950.0,117940.0,0.07442847]
[1753835389796,4.51781393,117950.0,117940.0,0.07442847]
[1753835390016,4.51781364,117950.0,117940.0,0.07442847]
[1753835390228,5.20981545,117950.0,117940.0,4.847e-05]
[1753835390447,5.35701348,117950.0,117940.0,4.847e-05]
[1753835390893,5.35701348,117950.0,117940.0,0.00104847]
[1753835391327,5.35701348,117950.0,117940.0,4.847e-05]
[1753835393050,5.35801348,117950.0,117940.0,4.847e-05]
[1753835393273,5.36001348,117950.0,117940.0,4.847e-05]
[1753835393514,4.81651505,117940.0,117930.0,0.0004]
[1753835393733,5.18465677,117940.0,117930.0,0.00048202]
[1753835393969,5.13368677,117940.0,117930.0,0.00048202]
[1753835394410,5.13860677,117940.0,117930.0,0.00048202]
[1753835394884,5.13012796,117940.0,117930.0,0.00048202]
[1753835395068,5.1336867,117940.0,117930.0,0.00048202]
[1753835395190,5.45818509,117940.0,117930.0,0.00048202]
[1753835395407,4.99458829,117930.0,117920.0,0.0004]
[1753835395652,5.31930986,117930.0,117920.0,0.0004]
[1753835397209,5.31819986,117930.0,117920.0,0.0004]
[1753835397448,5.32119986,117930.0,117920.0,0.0004]
[1753835397867,5.1466873,117930.0,117920.0,0.0004]
[1753835398318,5.1466873,117930.0,117920.0,0.02478]
[1753835398526,5.15516683,117930.0,117920.0,0.02478]
[1753835398740,5.1466873,117930.0,117920.0,0.02478]
[1753835399153,5.15547478,117930.0,117920.0,0.02478]
[1753835399977,5.16395365,117930.0,117920.0,0.02478]
[1753835400184,5.13699751,117930.0,117920.0,0.02478]
[1753835400394,5.14547704,117930.0,117920.0,0.02478]
[1753835400807,5.13699751,117930.0,117920.0,0.02478]
[1753835401137,5.1539565,117930.0,117920.0,0.02478]
[1753835401362,5.13699751,117930.0,117920.0,0.02478]
[1753835401830,5.14547704,117930.0,117920.0,0.02478]
[1753835402547,5.13699751,117930.0,117920.0,0.02478]
[1753835402794,5.13702465,117920.0,117910.0,0.0004]
[1753835403010,5.46863676,117920.0,117910.0,0.0004]
[1753835403139,1.21688663,117920.0,117910.0,0.0004]
[1753835403338,5.49504463,117920.0,117910.0,0.0004]
[1753835403561,5.49012463,117920.0,117910.0,0.0004]
[1753835403780,5.01259682,117910.0,117900.0,0.02478]
[1753835403990,5.28767451,117910.0,117900.0,0.02478]
[1753835404208,5.1119749,117900.0,117890.0,0.0004]
[1753835404444,5.40929621,117900.0,117890.0,0.0004]
[1753835405336,5.39136988,117900.0,117890.0,0.0004]
[1753835405562,5.47012868,117900.0,117890.0,0.00088562]
[1753835406015,5.47012868,117900.0,117890.0,0.00388562]
[1753835406241,4.98904614,117890.0,117880.0,0.06785]
[1753835406445,5.22128344,117890.0,117880.0,0.06478]
[1753835406671,5.14459326,117890.0,117880.0,0.09999078]
[1753835406891,5.14459326,117890.0,117880.0,0.07868078]
[1753835406892,5.15307574,117890.0,117880.0,0.07868078]
[1753835407128,5.32726322,117890.0,117880.0,0.0404]
[1753835407353,0.5154488,117880.0,117870.0,0.05745]
[1753835407576,4.99461535,117880.0,117870.0,0.05745]
[1753835407833,4.99461535,117880.0,117870.0,0.05959]
[1753835407834,4.99639535,117880.0,117870.0,0.05959]
[1753835408075,5.00487848,117880.0,117870.0,0.05959]
[1753835408299,5.21552574,117880.0,117870.0,0.05959]
[1753835408542,5.04586168,117880.0,117870.0,0.05959]
[1753835408760,5.03737891,117880.0,117870.0,0.05959]
[1753835408997,5.44605729,117880.0,117870.0,0.02150022]
[1753835409228,5.43403729,117880.0,117870.0,0.02150022]
[1753835409460,5.43303729,117880.0,117870.0,0.01300044]
[1753835410157,5.2138192,117880.0,117870.0,0.04259044]
[1753835410386,5.205336,117880.0,117870.0,0.04259044]
[1753835410609,5.21381934,117880.0,117870.0,0.04259044]
[1753835410821,5.42705401,117880.0,117870.0,0.01300044]
[1753835411040,5.44007401,117880.0,117870.0,0.01300044]
[1753835411910,5.42705401,117880.0,117870.0,0.01300044]
[1753835412133,5.40009787,117880.0,117870.0,0.03738044]
[1753835412346,5.40009787,117880.0,117870.0,0.04045044]
[1753835412818,5.07857096,117880.0,117870.0,0.03738044]
[1753835413039,5.09159096,117880.0,117870.0,0.01300044]
[1753835413483,5.07857096,117880.0,117870.0,0.03738044]
[1753835413891,5.07857096,117880.0,117870.0,0.04041044]
[1753835414796,5.07857096,117880.0,117870.0,0.07475044]
[1753835414797,4.561998,117880.0,117870.0,0.07475044]
[1753835415024,0.13384,117880.0,117870.0,0.10996122]
[1753835415487,0.13388,117880.0,117870.0,0.10996122]
[1753835415702,0.003,117880.0,117870.0,0.10996122]
[1753835415922,4.278158,117880.0,117870.0,0.15996122]
[1753835416147,0.13088,117880.0,117870.0,0.15996122]
[1753835416614,4.409038,117880.0,117870.0,0.15996122]
[1753835417036,0.13088,117880.0,117870.0,0.16056122]
[1753835417252,0.13088,117880.0,117870.0,0.15956122]
[1753835418644,0.13088,117880.0,117870.0,0.16156122]
[1753835418870,0.13088,117880.0,117870.0,0.16356122]
[1753835423287,1.78228,117880.0,117870.0,0.16356122]
[1753835423728,1.78228,117880.0,117870.0,0.16280122]
[1753835428108,1.78216,117880.0,117870.0,0.16280122]
[1753835429410,1.6514,117880.0,117870.0,0.16280122]
[1753835429636,1.78212,117880.0,117870.0,0.16280122]
[1753835430511,1.6514,117880.0,117870.0,0.16280122]
[1753835430725,1.78212,117880.0,117870.0,0.16280122]
[1753835432303,1.6514,117880.0,117870.0,0.16280122]
[1753835432525,1.78208,117880.0,117870.0,0.16280122]
[1753835435188,1.6514,117880.0,117870.0,0.24727852]
[1753835435409,1.782,117880.0,117870.0,0.24727852]
[1753835436469,1.78196,117880.0,117870.0,0.24727852]
[1753835436885,1.58339166,117880.0,117870.0,0.29511837]
[1753835440160,1.45283166,117880.0,117870.0,0.29511837]
[1753835442021,1.45283166,117880.0,117870.0,0.24727852]
[1753835460632,1.45283166,117880.0,117870.0,0.41695697]
[1753835460845,1.45283166,117880.0,117870.0,0.45137347]
[1753835461304,1.44958166,117880.0,117870.0,1.11245688]
[1753835461554,1.44958166,117880.0,117870.0,1.10845688]
[1753835461781,1.44958166,117880.0,117870.0,1.11245688]
[1753835461966,1.44958166,117880.0,117870.0,1.11845688]
[1753835462187,1.44958166,117880.0,117870.0,1.23853688]
[1753835462408,1.44958166,117880.0,117870.0,1.24753688]
[1753835462615,1.44958166,117880.0,117870.0,1.25453688]
[1753835463721,1.44958166,117880.0,117870.0,1.30453688]
[1753835469967,1.29604864,117880.0,117870.0,1.30453688]
[1753835472737,1.23852991,117880.0,117870.0,1.30453688]
[1753835477711,1.1434144,117880.0,117870.0,1.75073688]
[1753835477926,0.26894215,117880.0,117870.0,1.75073688]
[1753835478421,0.22069035,117880.0,117870.0,1.75073688]
[1753835478701,0.22069035,117880.0,117870.0,1.73473688]
[1753835479186,0.13910035,117880.0,117870.0,1.74373688]
[1753835479868,0.13910035,117880.0,117870.0,1.75573688]
[1753835481674,0.13910035,117880.0,117870.0,1.62565688]
[1753835481903,0.00048433,117900.0,117890.0,0.42825605]
[1753835482129,0.00048433,117900.0,117890.0,0.84867335]
[1753835482353,0.00048433,117900.0,117890.0,0.87597335]
[1753835484368,0.00048433,117900.0,117890.0,0.88597335]
[1753835486059,0.00048433,117900.0,117890.0,0.75593335]
[1753835486295,0.00048433,117900.0,117890.0,0.4009771]
[1753835486296,0.03401433,117900.0,117890.0,0.4009771]
[1753835486526,0.04901433,117900.0,117890.0,0.70026249]
[1753835486744,0.03401433,117900.0,117890.0,0.71722666]
[1753835486960,0.03401433,117900.0,117890.0,0.73467568]
[1753835487173,0.03401433,117900.0,117890.0,1.05722666]
[1753835487394,0.00549433,117900.0,117890.0,1.06467568]
[1753835487621,0.00245433,117900.0,117890.0,1.10500568]
[1753835487849,0.00245433,117900.0,117890.0,1.39393568]
[1753835488080,0.00048433,117900.0,117890.0,1.36181568]
[1753835488299,0.00048433,117900.0,117890.0,1.48997568]
[1753835488513,0.00245433,117900.0,117890.0,1.46964568]
[1753835489173,0.00245433,117900.0,117890.0,1.47164568]
[1753835489392,0.00245433,117900.0,117890.0,1.47172568]
[1753835489652,0.00549433,117900.0,117890.0,1.47172568]
[1753835489864,0.00549433,117900.0,117890.0,1.45572568]
[1753835490302,0.00549433,117900.0,117890.0,1.47172568]
[1753835490524,0.00245433,117900.0,117890.0,1.47172568]
[1753835490749,0.00245433,117900.0,117890.0,1.45572568]
[1753835490947,0.00245433,117900.0,117890.0,1.45172568]
[1753835491174,0.00245433,117900.0,117890.0,1.40172568]
[1753835491393,0.00549433,117900.0,117890.0,1.40572568]
[1753835491613,0.00549433,117900.0,117890.0,1.35572568]
[1753835491845,0.00549433,117900.0,117890.0,1.45572568]
[1753835492057,0.00549433,117900.0,117890.0,1.40572568]
[1753835492286,0.00549433,117900.0,117890.0,1.38139568]
[1753835492287,0.02049433,117900.0,117890.0,1.38139568]
[1753835492589,0.02049433,117900.0,117890.0,1.38439568]
[1753835492802,0.02049433,117900.0,117890.0,1.35872568]
[1753835493017,0.02049433,117900.0,117890.0,1.40872568]
[1753835493954,0.02049433,117900.0,117890.0,1.35872568]
[1753835494194,0.02049433,117900.0,117890.0,1.40872568]
[1753835494436,0.02049433,117900.0,117890.0,1.35872568]
[1753835494693,0.04981433,117900.0,117890.0,0.76152632]
[1753835494919,0.04981433,117900.0,117890.0,0.30684808]
[1753835495170,0.04981433,117900.0,117890.0,0.25684808]
[1753835495428,0.04981433,117900.0,117890.0,0.30284808]
[1753835495885,0.04981433,117900.0,117890.0,0.30384808]
[1753835496784,0.04981433,117900.0,117890.0,0.30584808]
[1753835497010,0.04981433,117900.0,117890.0,0.29984808]
[1753835497264,0.04981433,117900.0,117890.0,0.29988808]
[1753835497493,0.04981433,117900.0,117890.0,0.30188808]
[1753835499262,0.04981433,117900.0,117890.0,0.2666773]
[1753835499476,0.04981433,117900.0,117890.0,0.30188808]
[1753835501275,0.03679433,117900.0,117890.0,0.30188808]
[1753835501513,0.01548433,117900.0,117890.0,0.51834677]
[1753835501730,0.00048433,117900.0,117890.0,0.54379377]
[1753835502165,0.00048433,117900.0,117890.0,0.55227589]